bitfinex-derivatives/quotes_BNBF0:USTF0_20250406
["timestamp","ask_amount","ask_price","bid_price","bid_amount"]
[1743943386224,0.57869941,587.26,586.72,0.28280415]
[1743943386421,0.57869941,587.25,586.72,0.28280415]
[1743943386624,0.567,587.33,586.72,0.28280415]
[1743943386824,0.57870164,587.32,586.72,0.28280415]
[1743943387020,0.57870164,587.31,586.72,0.28280415]
[1743943387221,0.57870164,587.3,586.72,0.28280415]
[1743943387425,0.57870164,587.29,586.61,0.28280415]
[1743943387623,0.57870164,587.28,586.6,1.27319059]
[1743943387826,0.57870164,587.27,586.61,0.28280489]
[1743943388024,0.57870164,587.26,586.61,0.28280489]
[1743943388221,0.567,587.33,586.61,0.28280489]
[1743943388422,0.57871099,587.32,586.61,0.28280489]
[1743943388721,0.57871099,587.31,586.61,0.28280489]
[1743943388923,0.57871099,587.3,586.61,0.28280489]
[1743943389124,0.57871099,587.29,586.61,0.28280489]
[1743943389323,0.57871099,587.28,586.61,0.28280489]
[1743943389526,0.57871099,587.27,586.58,0.28280489]
[1743943389826,0.57871099,587.26,586.59,0.28280489]
[1743943390026,0.567,587.33,586.58,0.28280489]
[1743943390326,0.57871966,587.32,586.58,0.28280489]
[1743943390522,0.57871966,587.31,586.58,0.28280489]
[1743943390829,0.57871966,587.3,586.58,0.28280489]
[1743943391121,0.57871966,587.29,586.58,0.28280489]
[1743943391321,0.57871966,587.28,586.58,0.28280489]
[1743943391526,0.57871966,587.27,586.58,0.28280489]
[1743943391720,0.57871966,587.26,586.58,0.28280489]
[1743943391925,0.567,587.33,586.58,0.28280489]
[1743943392126,0.57872699,587.32,586.58,0.28280489]
[1743943392319,0.57872699,587.31,586.58,0.28280489]
[1743943392524,0.57872699,587.3,586.58,0.28280489]
[1743943392723,0.57872699,587.29,586.58,0.28280489]
[1743943392927,0.57872699,587.28,586.58,0.28280489]
[1743943393120,0.57872699,587.27,586.58,0.28280489]
[1743943393322,0.57872699,587.26,586.58,0.28280489]
[1743943393521,0.57872699,587.25,586.57,0.34096527]
[1743943393725,0.57871535,587.24,586.57,0.34096527]
[1743943393920,0.57871535,587.23,586.57,0.34096527]
[1743943394122,0.57871535,587.22,586.57,0.34096527]
[1743943394322,0.57871535,587.21,586.57,0.34096527]
[1743943394628,0.57871535,587.2,586.57,0.34096527]
[1743943394829,0.57871535,587.19,586.57,0.34096527]
[1743943395029,0.57871535,587.18,586.57,0.34096527]
[1743943395224,0.57871535,587.17,586.57,0.34096527]
[1743943395429,0.57871535,587.16,586.57,0.34096527]
[1743943395629,0.57860335,587.15,586.57,0.34096527]
[1743943395928,0.57859727,587.14,586.57,0.34096527]
[1743943396129,0.57859727,587.13,586.58,0.28287102]
[1743943396330,0.57859727,587.12,586.58,0.28287102]
[1743943396525,0.5784845,587.11,586.58,0.28287102]
[1743943396725,0.5784845,587.1,586.57,0.34096527]
[1743943397030,0.5784845,587.09,586.57,0.34096527]
[1743943397230,0.5784845,587.08,586.57,0.34096527]
[1743943397429,0.5784845,587.07,586.57,0.34096527]
[1743943397630,0.5784845,587.06,586.57,0.34096527]
[1743943397825,0.623,587.1,586.57,0.34096527]
[1743943398029,0.5782238,587.09,586.57,0.34096527]
[1743943398227,0.5782238,587.08,586.57,0.34096527]
[1743943398431,0.5782238,587.07,586.57,0.34096527]
[1743943398728,0.5782238,587.06,586.57,0.34096527]
[1743943398928,0.623,587.1,586.57,0.34096527]
[1743943399132,0.57805772,587.09,586.57,0.34096527]
[1743943399334,0.57790025,587.08,586.57,0.34096527]
[1743943399532,0.57790025,587.07,586.57,0.34096527]
[1743943399729,0.623,587.1,586.57,0.34096527]
[1743943399933,0.57789708,587.09,586.57,0.34096527]
[1743943400133,0.57789708,587.08,586.57,0.34096527]
[1743943400332,0.57789708,587.07,586.57,0.34096527]
[1743943400534,0.57789708,587.09,586.57,0.34096527]
[1743943400734,0.57789708,587.08,586.57,0.34096527]
[1743943401033,0.57789708,587.07,586.57,0.34096527]
[1743943401228,0.57789708,587.09,586.57,0.34096527]
[1743943401434,0.57789708,587.08,586.57,0.34096527]
[1743943401734,0.57764991,587.09,586.57,0.34096527]
[1743943402234,0.623,587.1,586.57,0.34096527]
[1743943412534,0.623,587.1,586.58,0.28290294]
[1743943414133,0.623,587.1,586.57,0.34096527]
[1743943414434,0.623,587.1,586.58,0.28290291]
[1743943415939,0.623,587.1,586.57,0.34096527]
[1743943416139,0.623,587.1,586.58,0.28290856]
[1743943418638,0.623,587.1,586.2,0.29648562]
[1743943418842,0.623,587.1,586.21,0.62408918]
[1743943419143,0.623,587.1,586.22,0.62408336]
[1743943419438,0.623,587.1,586.23,0.62407754]
[1743943419641,0.623,587.1,586.21,1.27319059]
[1743943419642,0.623,587.1,586.24,0.62407172]
[1743943419840,0.623,587.1,586.24,0.3411572]
[1743943420040,0.623,587.1,586.25,0.2829188]
[1743943420845,0.623,587.1,586.26,0.28291875]
[1743943421044,0.623,587.1,586.25,0.28291875]
[1743943424143,0.623,587.1,586.24,0.3411572]
[1743943424347,0.623,587.1,586.25,0.28291177]
[1743943425649,0.623,587.1,586.26,0.34114556]
[1743943425950,0.29652731,587.17,586.27,0.28291309]
[1743943426249,0.57658038,587.32,586.27,0.62405283]
[1743943426451,0.57658038,587.31,586.3,1.27319059]
[1743943426650,0.57661271,587.3,586.31,0.28291309]
[1743943426854,0.57661271,587.29,586.31,0.28291309]
[1743943427049,0.57661271,587.28,586.31,0.28291309]
[1743943427246,0.57661271,587.27,586.31,0.28291309]
[1743943427445,0.57661271,587.26,586.31,0.28291309]
[1743943427746,0.57661271,587.25,586.31,0.28291309]
[1743943427947,0.57661271,587.24,586.31,0.28291309]
[1743943428252,0.57661271,587.23,586.31,0.28291309]
[1743943428450,0.57661271,587.22,586.31,0.28291309]
[1743943428650,0.57661271,587.27,586.31,0.28291309]
[1743943428950,0.57661271,587.26,586.31,0.28291309]
[1743943429151,0.57661271,587.25,586.35,1.27319059]
[1743943429356,0.57661271,587.24,586.36,0.28291309]
[1743943429553,0.57661271,587.23,586.36,0.28291309]
[1743943429753,0.57661271,587.22,586.36,0.28291309]
[1743943430358,0.57661271,587.21,586.36,0.28291309]
[1743943430658,0.29648941,587.21,586.36,0.28291309]
[1743943430852,0.87310212,587.21,586.36,0.28291309]
[1743943431055,0.29648941,587.21,586.36,0.28291309]
[1743943431252,0.87310212,587.21,586.36,0.28291309]
[1743943431455,0.29648941,587.21,586.36,0.28291309]
[1743943431654,0.87310212,587.21,586.49,1.27319059]
[1743943431853,0.29648941,587.21,586.49,1.27319059]
[1743943432054,0.87310212,587.21,586.5,0.28290261]
[1743943432257,0.57661271,587.22,586.5,0.28290261]
[1743943432454,0.57661271,587.21,586.51,0.28290263]
[1743943432658,0.57661271,587.2,586.5,0.28290263]
[1743943432858,0.549,587.23,586.51,0.28290263]
[1743943432859,0.57661271,587.19,586.51,0.28290263]
[1743943433056,0.57661271,587.18,586.5,0.28290263]
[1743943433260,0.57661271,587.17,586.51,0.28290263]
[1743943433461,0.57661271,587.16,586.5,0.28290263]
[1743943433661,0.57661271,587.15,586.5,0.28290263]
[1743943433962,0.57697129,587.14,586.54,1.27319059]
[1743943434157,0.57697129,587.19,586.55,0.28290263]
[1743943434357,0.57697129,587.18,586.55,0.28290263]
[1743943434661,0.57697129,587.17,586.55,0.28290263]
[1743943434858,0.57697129,587.16,586.55,0.28290263]
[1743943435059,0.57697129,587.15,586.55,0.28290263]
[1743943435261,0.57697129,587.19,586.55,0.28290263]
[1743943435458,0.57697129,587.18,586.55,0.28290263]
[1743943435760,0.57711321,587.17,586.55,0.28290263]
[1743943435963,0.57711321,587.16,586.55,0.28290263]
[1743943436265,0.57711321,587.15,586.55,0.28290263]
[1743943436460,0.57711321,587.15,586.41,1.27319059]
[1743943436461,0.57711321,587.14,586.41,1.27319059]
[1743943436666,0.57711321,587.13,586.41,1.27319059]
[1743943436864,0.57711321,587.12,586.42,0.2829198]
[1743943437062,0.57711321,587.11,586.42,0.2829198]
[1743943437264,0.57711321,587.18,586.42,0.2829198]
[1743943437462,0.57711321,587.17,586.42,0.2829198]
[1743943437762,0.29646794,587.19,586.42,0.2829198]
[1743943437763,0.57711321,587.16,586.42,0.2829198]
[1743943437967,0.57711321,587.15,586.42,0.2829198]
[1743943438164,0.57711321,587.14,586.42,0.2829198]
[1743943438361,0.57711321,587.13,586.42,0.2829198]
[1743943438567,0.29646794,587.19,586.4,1.27319059]
[1743943438568,0.57711321,587.12,586.43,0.2829198]
[1743943438766,0.57711321,587.11,586.41,0.2829198]
[1743943438966,0.57711321,587.1,586.44,0.2829198]
[1743943439167,0.57711321,587.09,586.45,0.2829198]
[1743943439365,0.57724988,587.08,586.41,0.2829198]
[1743943439560,0.57724988,587.18,586.42,0.28293262]
[1743943439765,0.57724988,587.17,586.41,0.28293262]
[1743943439965,0.57724988,587.16,586.42,0.28293262]
[1743943440164,0.57724988,587.15,586.41,0.28293262]
[1743943440366,0.57724988,587.14,586.41,0.28293262]
[1743943440562,0.57724988,587.13,586.41,0.28293262]
[1743943440765,0.57724988,587.12,586.42,0.28293262]
[1743943441065,0.57724988,587.11,586.43,0.28293262]
[1743943441266,0.57724988,587.1,586.37,0.28293262]
[1743943441462,0.57724988,587.09,586.37,0.28293262]
[1743943441670,0.57724988,587.08,586.36,1.27319059]
[1743943441963,0.57724988,587.07,586.36,1.27319059]
[1743943442168,0.57724988,587.06,586.36,1.27319059]
[1743943442369,0.57724988,587.05,586.36,1.27319059]
[1743943442666,0.57724988,587.04,586.36,1.27319059]
[1743943442867,0.57724988,587.07,586.36,1.27319059]
[1743943443065,0.57724988,587.06,586.36,1.27319059]
[1743943443266,0.29651846,587.08,586.27,1.61433033]
[1743943443267,0.57724988,587.05,586.27,0.34113974]
[1743943443463,0.57724988,587.07,586.27,0.34113974]
[1743943443763,0.57724988,587.06,586.27,0.34113974]
[1743943443966,0.57724988,587.05,586.27,0.34113974]
[1743943444162,0.57743658,587.04,586.27,0.34113974]
[1743943444367,0.57743658,587.07,586.27,0.34113974]
[1743943444566,0.57743658,587.06,586.27,0.34113974]
[1743943444766,0.57743658,587.05,586.27,0.34113974]
[1743943444968,0.57743658,587.04,586.27,0.34113974]
[1743943445170,0.57743658,587.03,586.27,0.34113974]
[1743943445370,0.57743658,587.02,586.27,0.34113974]
[1743943445670,0.57743658,587.07,586.28,0.28295836]
[1743943445871,0.57743658,587.06,586.28,0.28295836]
[1743943446073,0.57743658,587.05,586.28,0.28295836]
[1743943446373,0.57743658,587.04,586.27,0.34113974]
[1743943446570,0.57743658,587.03,586.27,0.34113974]
[1743943446772,0.57743658,587.02,586.28,0.28297607]
[1743943446974,0.57743658,587.01,586.28,0.28297607]
[1743943447268,0.57743658,587.0,586.28,0.28297607]
[1743943447474,0.57743658,587.07,586.28,0.28297607]
[1743943447772,0.296569,587.08,586.28,0.28297607]
[1743943447773,0.57754774,587.06,586.28,0.28297607]
[1743943447973,0.57754774,587.05,586.28,0.28297607]
[1743943448174,0.57754774,587.04,586.27,0.34113974]
[1743943448469,0.57754774,587.03,586.28,0.28298195]
[1743943448673,0.57754774,587.02,586.28,0.28298195]
[1743943448873,0.57754774,587.01,586.28,0.28298195]
[1743943449173,0.57754774,587.0,586.28,0.28298195]
[1743943449374,0.57754774,586.99,586.28,0.28298195]
[1743943449575,0.57754774,586.98,586.28,0.28298195]
[1743943449773,0.57754774,586.98,586.27,0.34113974]
[1743943449774,0.57754774,586.97,586.27,0.34113974]
[1743943449970,0.57754774,586.96,586.27,0.34113974]
[1743943450174,0.57754774,586.95,586.27,0.34113974]
[1743943450374,0.57754774,586.94,586.27,0.34113974]
[1743943450675,0.57754774,586.93,585.99,1.27319059]
[1743943450875,0.57754774,586.92,585.99,1.27319059]
[1743943451073,0.57754774,586.91,585.99,1.27319059]
[1743943451276,0.57754774,586.9,585.99,1.27319059]
[1743943451580,0.57754774,586.89,585.99,1.27319059]
[1743943451770,0.57754774,586.88,585.99,1.27319059]
[1743943451976,0.57754774,586.87,585.99,1.27319059]
[1743943452177,0.57754774,586.86,585.99,1.27319059]
[1743943452379,0.57754774,586.85,585.99,1.27319059]
[1743943452581,0.57754774,586.84,585.99,1.27319059]
[1743943452783,0.57754774,586.83,585.99,1.27319059]
[1743943452984,0.57754774,586.82,586.0,0.28311656]
[1743943453284,0.57666791,586.81,585.99,1.27319059]
[1743943453484,0.57666791,586.8,586.0,0.28311386]
[1743943453686,0.57666791,587.22,586.0,0.28311386]
[1743943453884,0.91726156,587.21,585.48,1.27319059]
[1743943454084,0.91726736,587.2,585.5,0.34158838]
[1743943454284,0.91727316,587.19,585.51,0.28311024]
[1743943454480,0.91727896,587.18,585.53,0.34157088]
[1743943454683,0.91728476,587.17,585.54,0.28311024]
[1743943454886,0.91729056,587.16,585.56,0.34155338]
[1743943455079,0.91680289,587.15,585.57,0.28310989]
[1743943455283,0.9168087,587.14,585.59,0.34153588]
[1743943455485,0.9168145,587.13,585.6,0.28310989]
[1743943455681,0.9168203,587.12,585.62,0.34151839]
[1743943455881,0.9168261,587.11,585.63,0.28310989]
[1743943456088,0.9168319,587.1,585.65,0.34150089]
[1743943456286,0.91683771,587.09,585.66,0.28310989]
[1743943456587,0.91684351,587.08,585.67,0.34148923]
[1743943456782,0.91684931,587.07,585.68,0.28310989]
[1743943456985,0.57617444,587.06,585.69,0.34147757]
[1743943457180,0.91686092,587.05,585.7,0.28310989]
[1743943457384,0.57617444,587.04,585.72,0.34146008]
[1743943457587,0.57617444,587.03,585.73,0.28310989]
[1743943457788,0.57617444,587.02,585.74,0.34144842]
[1743943457986,0.57617444,587.01,585.75,0.28310989]
[1743943458187,0.57617444,587.0,585.76,0.34143676]
[1743943458385,0.57617444,586.99,585.77,0.28310989]
[1743943458587,0.57617444,586.98,585.78,0.3414251]
[1743943458788,0.57617444,586.97,585.79,0.28310989]
[1743943459089,0.57617444,586.96,585.8,0.34141345]
[1743943459289,0.57617444,586.95,585.81,0.28310989]
[1743943459490,0.57617444,586.94,585.82,0.34140179]
[1743943459689,0.57617444,586.93,585.83,0.28310989]
[1743943459889,0.57617444,586.92,585.84,0.34139014]
[1743943460091,0.57617444,587.04,585.85,0.28311662]
[1743943460390,0.57617444,587.03,585.85,0.62450093]
[1743943460588,0.57617444,587.02,585.86,0.28311662]
[1743943460790,0.57617444,587.01,585.86,0.28311662]
[1743943460990,0.57617444,587.0,585.86,0.28311662]
[1743943461291,0.57617444,586.99,585.86,0.28311662]
[1743943461491,0.57617444,586.98,585.86,0.28311662]
[1743943461793,0.57617444,587.02,585.86,0.28311662]
[1743943461993,0.57617444,587.01,585.86,0.28311662]
[1743943462189,0.57617444,587.0,585.86,0.28311662]
[1743943462396,0.57617444,587.02,585.86,0.28311662]
[1743943462695,0.57617444,587.01,585.86,0.28311662]
[1743943462895,0.57617444,587.0,585.86,0.28311662]
[1743943463092,0.57617444,587.02,585.86,0.28311662]
[1743943463293,0.57617444,587.01,585.86,0.28311662]
[1743943463596,0.29667013,587.01,585.87,0.34137265]
[1743943463796,0.87284457,587.01,585.87,0.34137265]
[1743943463990,0.29667013,587.01,585.88,0.28311662]
[1743943464191,0.87140954,587.01,585.89,0.341361]
[1743943464393,0.29667013,587.01,585.9,0.28311662]
[1743943464590,0.87140954,587.01,585.9,0.28311662]
[1743943464794,0.29667013,587.01,585.89,0.341361]
[1743943464990,0.87140954,587.01,585.9,0.28311326]
[1743943465193,0.29667013,587.01,585.9,0.28311326]
[1743943465397,0.87140954,587.01,585.9,0.28311326]
[1743943465594,0.29667013,587.01,585.9,0.28311326]
[1743943466701,0.29667013,587.01,585.91,0.34134935]
[1743943466902,0.29667013,587.01,585.92,0.28311326]
[1743943467103,0.29667013,587.01,585.93,0.3413377]
[1743943467295,0.29667013,587.01,585.94,0.28311326]
[1743943467500,0.29667013,587.01,585.95,0.34132605]
[1743943467697,0.29667013,587.01,585.96,0.28311326]
[1743943467903,0.29667013,587.01,585.97,0.3413144]
[1743943468101,0.29667013,587.01,585.97,0.62437084]
[1743943468304,0.519,587.03,585.98,0.28305644]
[1743943468504,0.519,587.03,585.99,0.34130275]
[1743943469804,0.87129605,587.02,585.99,0.34130275]
[1743943470402,0.57460821,587.01,585.99,0.34130275]
[1743943470606,0.87129605,587.02,585.99,0.34130275]
[1743943471405,0.57460821,587.02,585.99,0.34130275]
[1743943472009,0.57460821,587.01,585.99,0.34130275]
[1743943472208,0.57460821,587.02,585.99,0.34130275]
[1743943472504,0.57460821,587.01,585.99,0.34130275]
[1743943472705,0.29672578,587.0,585.99,0.34130275]
[1743943474312,0.57460821,587.01,585.99,0.34130275]
[1743943474613,0.57460821,587.02,585.99,0.34130275]
[1743943474912,0.57460821,587.01,585.99,0.34130275]
[1743943475211,0.57460821,587.02,585.99,0.34130275]
[1743943475407,0.57460821,587.01,585.99,0.34130275]
[1743943475607,0.29671819,587.0,585.99,0.34130275]
[1743943476712,0.29671819,587.0,586.0,0.28306821]
[1743943477309,0.519,587.03,586.0,0.28306821]
[1743943478509,0.519,587.03,585.99,0.34130275]
[1743943478715,0.29664358,587.02,586.0,0.28306822]
[1743943480315,0.519,587.03,586.0,0.28306822]
[1743943481614,0.29664358,587.02,586.0,0.28306822]
[1743943482716,0.29664358,587.02,585.99,0.34130275]
[1743943482910,0.29664358,587.02,586.0,0.28305964]
[1743943483314,0.519,587.03,586.0,0.28305964]
[1743943483714,0.519,587.03,586.01,0.3412911]
[1743943483915,0.519,587.03,586.02,0.28305964]
[1743943484112,0.519,587.03,586.02,0.62434492]
[1743943484311,0.519,587.03,586.03,0.28305964]
[1743943484612,0.29661577,587.02,586.02,0.34128528]
[1743943484816,0.29661577,587.02,586.03,0.28303741]
[1743943486218,0.29661577,587.02,586.02,0.34128528]
[1743943486412,0.519,587.03,586.02,0.34128528]
[1743943486413,0.519,587.03,586.03,0.28303741]
[1743943487613,0.2966183,587.02,586.03,0.28303741]
[1743943489114,0.87191032,587.02,586.03,0.28303741]
[1743943489320,0.57529202,587.02,586.03,0.28303741]
[1743943489716,0.57550556,587.02,586.03,0.28303741]
[1743943490221,0.57550556,587.01,586.03,0.28303741]
[1743943490419,0.519,587.03,586.03,0.62431686]
[1743943490621,0.34068648,587.05,586.04,0.28303741]
[1743943491416,0.34068648,587.05,586.05,0.28298638]
[1743943491615,0.34068648,587.05,586.04,0.28298638]
[1743943491817,0.34068648,587.05,586.05,0.3412678]
[1743943492016,0.34068648,587.05,586.06,0.28298638]
[1743943492222,0.34068648,587.05,586.07,0.34125616]
[1743943492422,0.34068648,587.05,586.08,0.28298638]
[1743943492622,0.34068648,587.05,586.09,0.34124451]
[1743943492819,0.34068648,587.05,586.1,0.28298638]
[1743943493023,0.34068648,587.05,586.11,0.6242168]
[1743943493223,0.57586546,587.85,586.12,0.62421098]
[1743943493523,0.29646037,587.12,586.13,0.62420516]
[1743943493723,0.29646037,587.12,586.14,0.28298393]
[1743943493916,0.57586546,587.68,586.15,0.34120958]
[1743943494118,0.34033284,587.66,586.16,0.28298393]
[1743943494321,0.88906708,587.65,586.17,0.34119794]
[1743943494523,0.34035022,587.63,586.18,0.28298393]
[1743943494719,0.88906708,587.62,586.19,0.3411863]
[1743943494921,0.88906708,587.61,586.2,0.28298393]
[1743943495122,0.88906708,587.6,586.2,0.28298393]
[1743943495323,0.88906708,587.59,586.2,0.28298393]
[1743943495519,0.88906708,587.58,586.2,0.28298393]
[1743943495818,0.88906708,587.57,586.2,0.28298393]
[1743943496018,0.88906708,587.56,586.2,0.28298393]
[1743943496217,0.88906708,587.55,586.2,0.28298393]
[1743943496418,0.57586546,587.54,586.21,0.2829718]
[1743943496619,0.88906962,587.53,586.2,0.2829718]
[1743943496818,0.88906962,587.52,586.2,0.2829718]
[1743943497024,1.22948935,587.51,586.2,0.2829718]
[1743943497219,1.22949515,587.5,586.2,0.2829718]
[1743943497423,1.22950094,587.49,586.2,0.2829718]
[1743943497624,1.22950674,587.48,586.2,0.2829718]
[1743943497824,0.91630837,587.47,586.2,0.2829718]
[1743943498025,0.88906962,587.46,586.2,0.2829718]
[1743943498228,0.88906962,587.45,586.2,0.2829718]
[1743943498525,0.29648815,587.55,586.2,0.2829718]
[1743943498526,1.22952992,587.44,586.2,0.2829718]
[1743943498726,1.22953571,587.43,586.2,0.2829718]
[1743943499027,1.22954151,587.42,586.2,0.2829718]
[1743943499227,1.22954731,587.41,586.2,0.2829718]
[1743943499526,1.2295531,587.4,586.2,0.2829718]
[1743943499825,1.2295589,587.39,586.2,0.2829718]
[1743943500022,1.22956469,587.38,586.2,0.2829718]
[1743943500222,0.88906962,587.37,586.2,0.2829718]
[1743943500424,1.22957629,587.36,586.2,0.2829718]
[1743943500620,0.91637793,587.35,586.2,0.2829718]
[1743943500827,0.57586546,587.34,586.2,0.2829718]
[1743943501028,0.57586546,587.33,586.2,0.2829718]
[1743943501229,0.57586546,587.32,586.21,0.28297477]
[1743943501527,0.57586546,587.31,586.22,0.28297477]
[1743943501721,0.57586546,587.3,586.2,0.28297477]
[1743943501927,0.57586546,587.29,586.2,0.28297477]
[1743943502125,0.57586546,587.28,586.2,0.28297477]
[1743943502324,0.57586546,587.27,586.2,0.28297477]
[1743943502628,0.57586546,587.26,586.21,0.28297483]
[1743943502821,0.57586546,587.25,586.2,0.28297483]
[1743943503022,0.57586546,587.24,586.21,0.28297483]
[1743943503228,0.57586546,587.23,586.2,0.28297483]
[1743943503427,0.57586546,587.22,586.2,0.28297483]
[1743943503628,0.57586546,587.21,586.2,0.28297483]
[1743943503830,0.57586546,587.2,586.2,0.28297483]
[1743943504033,0.57586546,587.19,586.2,0.28297483]
[1743943504224,0.57586546,587.18,586.2,0.28297483]
[1743943504525,0.57586546,587.17,586.21,0.28297494]
[1743943504728,0.57586546,587.16,586.2,0.28297494]
[1743943504922,0.57586546,587.15,586.21,0.28297494]
[1743943505127,0.57586546,587.14,586.2,0.28297494]
[1743943505324,0.57586546,587.13,586.21,0.28297494]
[1743943505632,0.57586546,587.12,586.22,0.28297494]
[1743943505830,0.57586546,587.11,586.2,0.28297494]
[1743943506023,0.57586546,587.1,586.2,0.28297494]
[1743943506227,0.57586546,587.09,586.2,0.28297494]
[1743943506429,0.57586546,587.08,586.19,0.3411863]
[1743943506630,0.57586546,587.07,586.2,0.28299151]
[1743943506829,0.57586546,587.06,586.2,0.28299151]
[1743943507027,0.57586546,587.05,586.2,0.28299151]
[1743943507226,0.57586546,587.04,586.2,0.28299151]
[1743943507523,0.57586546,587.03,586.2,0.28299151]
[1743943507725,0.57586546,587.02,586.2,0.28299151]
[1743943507929,0.57586546,587.01,586.2,0.28299151]
[1743943508130,0.57586546,587.0,586.2,0.28299151]
[1743943508329,0.57586546,586.99,586.19,0.3411863]
[1743943508630,0.57586546,586.98,586.2,0.28298637]
[1743943508825,0.57586546,587.05,586.2,0.28298637]
[1743943509024,0.57586546,587.04,586.2,0.28298637]
[1743943509324,0.57586546,587.03,586.2,0.28298637]
[1743943509524,0.57718254,587.02,586.21,0.28299142]
[1743943509829,0.57718254,587.01,586.22,0.28299142]
[1743943510029,0.57718254,587.0,586.22,0.28299142]
[1743943510230,0.57718254,586.99,586.23,0.28299142]
[1743943510427,0.57718254,586.98,586.2,0.28299142]
[1743943510630,0.57718254,586.97,586.2,0.28299142]
[1743943510845,0.57718254,586.96,586.2,0.28299142]
[1743943511032,0.57718254,586.95,586.2,0.28299142]
[1743943511229,0.57712504,586.94,586.2,0.28299142]
[1743943511430,0.57712504,586.93,586.2,0.28299142]
[1743943511630,0.57712504,587.0,586.2,0.28299142]
[1743943511828,0.29654247,587.01,586.2,0.28299142]
[1743943511829,0.57712504,586.99,586.2,0.28299142]
[1743943512031,0.57712504,586.98,586.2,0.28299142]
[1743943512328,0.57712504,586.97,586.2,0.28299142]
[1743943512532,0.57712504,586.96,586.2,0.28299142]
[1743943512727,0.57712504,586.95,586.21,0.28300893]
[1743943512928,0.57712504,586.94,586.2,0.28300893]
[1743943513127,0.57712504,586.93,586.21,0.28300893]
[1743943513327,0.57712504,586.92,586.2,0.28300893]
[1743943513532,0.57712504,587.34,586.21,0.28300893]
[1743943513735,0.29658543,587.01,586.2,0.28300893]
[1743943514034,0.57712504,587.0,586.21,0.28300893]
[1743943514234,0.57712504,586.99,586.2,0.28300893]
[1743943514429,0.57726562,586.98,586.19,0.3411863]
[1743943514634,0.57726562,587.32,586.2,0.28301538]
[1743943514837,0.296545,587.01,586.2,0.28301538]
[1743943515036,0.57725983,587.0,586.2,0.28301538]
[1743943515233,0.57725983,586.99,586.2,0.28301538]
[1743943515437,0.57725983,586.98,586.2,0.28301538]
[1743943515636,0.57725983,586.97,586.2,0.28301538]
[1743943515837,0.57725983,586.96,586.2,0.28301538]
[1743943516037,0.57725983,586.95,586.2,0.28301538]
[1743943516337,0.57730319,586.94,586.2,0.28301538]
[1743943516538,0.57730319,586.93,586.2,0.28301538]
[1743943516736,0.57730319,586.92,586.2,0.28301538]
[1743943516937,0.57730319,586.93,586.2,0.28301538]
[1743943517137,0.57730319,586.92,586.2,0.28301538]
[1743943517438,0.29660313,586.94,586.2,0.28301538]
[1743943517639,0.29660313,586.94,586.19,0.3411863]
[1743943517836,0.29660313,586.94,586.21,0.28302137]
[1743943518138,0.29660313,586.94,586.22,0.28302137]
[1743943518438,0.75860313,586.94,586.23,0.28302137]
[1743943518639,0.75860313,586.94,586.2,0.28302137]
[1743943519442,0.462,586.94,586.2,0.28302137]
[1743943519740,0.57730319,586.93,586.2,0.28302137]
[1743943519938,0.462,586.94,586.2,0.28302137]
[1743943520439,0.57730319,586.93,586.2,0.28302137]
[1743943520940,0.75856521,586.94,586.19,0.3411863]
[1743943521239,0.462,586.94,586.2,0.28301608]
[1743943522137,0.462,586.94,586.21,0.28300767]
[1743943522338,0.57730319,586.93,586.22,0.28300767]
[1743943522635,0.57730319,586.92,586.23,0.28300767]
[1743943522837,0.57730319,586.91,586.24,0.28300767]
[1743943523041,0.57730319,586.9,586.25,0.28300767]
[1743943523343,0.57730319,586.89,586.26,0.28300767]
[1743943523536,0.57730319,586.93,586.2,0.28300767]
[1743943523737,0.57730319,586.92,586.21,0.28300767]
[1743943523942,0.57786084,586.91,586.22,0.2829977]
[1743943524138,0.57786084,586.93,586.2,0.2829977]
[1743943524342,0.57786084,586.92,586.21,0.2829977]
[1743943524639,0.57786084,586.91,586.22,0.2829977]
[1743943524843,0.462,586.94,586.23,0.2829977]
[1743943525043,0.57791287,586.93,586.24,0.2829977]
[1743943525343,0.57791287,586.92,586.25,0.2829977]
[1743943525541,0.57791287,586.91,586.26,0.2829977]
[1743943525838,0.462,586.94,586.19,0.3411863]
[1743943525839,0.57791287,586.9,586.27,0.2829977]
[1743943526037,0.57791287,586.89,586.2,0.2829977]
[1743943526240,0.57791287,586.88,586.21,0.2829977]
[1743943526441,0.57791287,586.87,586.22,0.2829977]
[1743943526744,0.462,586.94,586.23,0.2829977]
[1743943527045,0.57809417,586.93,586.2,0.2829977]
[1743943527244,0.57809417,586.92,586.21,0.2829977]
[1743943527539,0.57809417,586.91,586.22,0.2829977]
[1743943527744,0.462,586.94,586.19,0.3411863]
[1743943527745,0.57809417,586.9,586.19,0.3411863]
[1743943527940,0.57809417,586.89,586.2,0.28301182]
[1743943528141,0.462,586.94,586.2,0.28301182]
[1743943528142,0.57809417,586.88,586.2,0.28301182]
[1743943528342,0.57809417,586.87,586.2,0.28301182]
[1743943528538,0.462,586.94,586.2,0.28301182]
[1743943528741,0.57816331,586.93,586.2,0.28301182]
[1743943528945,0.57816331,586.92,586.21,0.2830118]
[1743943529247,0.57816331,586.91,586.22,0.2830118]